[Event "Late-Titled-Tuesday-Blitz-October-10-2023"]
[Site "Chess.com"]
[Date "2023.10.10"]
[Round "11"]
[White "Witty_Alien"]
[Black "Arimin1329"]
[Result "1-0"]
[WhiteElo "2274"]
[BlackElo "2319"]
[TimeControl "180+1"]
[EndTime "16:01:06 PDT"]
[Termination "Witty_Alien won by checkmate"]

1. e4 {[%clk 0:03:00.9]} 1... c6 {[%clk 0:02:59.4]} 2. d4 {[%clk 0:03:00.9]}
2... d5 {[%clk 0:03:00.3]} 3. Nd2 {[%clk 0:03:00.6]} 3... dxe4 {[%clk 0:03:00]}
4. Nxe4 {[%clk 0:03:01.5]} 4... Bf5 {[%clk 0:03:00.1]} 5. Ng3 {[%clk 0:03:01.8]}
5... Bg6 {[%clk 0:03:00.7]} 6. h4 {[%clk 0:03:01.8]} 6... h6 {[%clk 0:03:01.4]}
7. Nh3 {[%clk 0:03:02.5]} 7... e6 {[%clk 0:02:59.3]} 8. Nf4 {[%clk 0:03:01.6]}
8... Bh7 {[%clk 0:02:59.4]} 9. Bc4 {[%clk 0:03:02.4]} 9... Nf6 {[%clk 0:02:57]}
10. O-O {[%clk 0:03:02.6]} 10... Nbd7 {[%clk 0:02:56.3]} 11. Re1 {[%clk
0:03:02.9]} 11... Be7 {[%clk 0:02:56.5]} 12. Bxe6 {[%clk 0:03:03.6]} 12... fxe6
{[%clk 0:02:54.6]} 13. Nxe6 {[%clk 0:03:03.8]} 13... Qa5 {[%clk 0:02:52.3]} 14.
Qe2 {[%clk 0:03:04.7]} 14... Kf7 {[%clk 0:02:35]} 15. Nxg7 {[%clk 0:02:59.6]}
15... Bf8 {[%clk 0:02:03.3]} 16. Bxh6 {[%clk 0:02:51.8]} 16... Bb4 {[%clk
0:01:27.2]} 17. Qe6+ {[%clk 0:02:34.9]} 17... Kg6 {[%clk 0:01:25.7]} 18. N3f5
{[%clk 0:02:16.9]} 18... Bg8 {[%clk 0:01:13]} 19. Qe3 {[%clk 0:01:42.1]} 19...
Rxh6 {[%clk 0:00:42.7]} 20. Qxh6+ {[%clk 0:01:39.9]} 20... Kf7 {[%clk
0:00:43.3]} 21. Ne6 {[%clk 0:01:22.1]} 21... Bxe1 {[%clk 0:00:28]} 22. Ng5+
{[%clk 0:01:01.6]} 22... Ke8 {[%clk 0:00:24.8]} 23. Nd6+ {[%clk 0:00:52.1]}
23... Kd8 {[%clk 0:00:25.1]} 24. Nxb7+ {[%clk 0:00:52]} 24... Kc8 {[%clk
0:00:25.5]} 25. Nxa5 {[%clk 0:00:51.6]} 25... Bxa5 {[%clk 0:00:26.1]} 26. b4
{[%clk 0:00:40.6]} 26... Bxb4 {[%clk 0:00:25.2]} 27. Rb1 {[%clk 0:00:37.9]}
27... Bf8 {[%clk 0:00:23.3]} 28. Qh8 {[%clk 0:00:37]} 28... Kc7 {[%clk
0:00:21.4]} 29. c4 {[%clk 0:00:25.9]} 29... Bxc4 {[%clk 0:00:20.4]} 30. h5
{[%clk 0:00:19.4]} 30... Bxa2 {[%clk 0:00:19.1]} 31. Rb2 {[%clk 0:00:19.3]}
31... Bd5 {[%clk 0:00:18.5]} 32. h6 {[%clk 0:00:19.6]} 32... Re8 {[%clk
0:00:18.9]} 33. h7 {[%clk 0:00:16.3]} 33... Ba3 {[%clk 0:00:17.2]} 34. Qxe8
{[%clk 0:00:15.2]} 34... Nxe8 {[%clk 0:00:17.7]} 35. Re2 {[%clk 0:00:09.5]}
35... Nef6 {[%clk 0:00:14.8]} 36. h8=Q {[%clk 0:00:09.7]} 36... Bc4 {[%clk
0:00:15.1]} 37. Qh2+ {[%clk 0:00:08.5]} 37... Bd6 {[%clk 0:00:13.9]} 38. Re5
{[%clk 0:00:06.6]} 38... Bxe5 {[%clk 0:00:12.6]} 39. dxe5 {[%clk 0:00:07.5]}
39... Nd5 {[%clk 0:00:13.2]} 40. e6+ {[%clk 0:00:07.3]} 40... Kd8 {[%clk
0:00:12]} 41. Qd6 {[%clk 0:00:06.1]} 41... Nb6 {[%clk 0:00:11.8]} 42. exd7
{[%clk 0:00:04]} 42... Nxd7 {[%clk 0:00:12.7]} 43. Ne6+ {[%clk 0:00:04.5]} 43...
Bxe6 {[%clk 0:00:12.3]} 44. Qxe6 {[%clk 0:00:05.3]} 44... c5 {[%clk 0:00:13.1]}
45. Qd6 {[%clk 0:00:05.6]} 45... a5 {[%clk 0:00:13.6]} 46. g4 {[%clk 0:00:06.2]}
46... a4 {[%clk 0:00:13.9]} 47. Qa6 {[%clk 0:00:06.6]} 47... c4 {[%clk
0:00:13.8]} 48. Qxa4 {[%clk 0:00:07]} 48... Nc5 {[%clk 0:00:14.3]} 49. Qxc4
{[%clk 0:00:07.3]} 49... Ne6 {[%clk 0:00:15]} 50. Qxe6 {[%clk 0:00:07.6]} 50...
Kc7 {[%clk 0:00:15.3]} 51. g5 {[%clk 0:00:08.5]} 51... Kd8 {[%clk 0:00:16.2]}
52. g6 {[%clk 0:00:09.4]} 52... Kc7 {[%clk 0:00:17.1]} 53. g7 {[%clk 0:00:10.3]}
53... Kb7 {[%clk 0:00:17.1]} 54. g8=Q {[%clk 0:00:11.2]} 54... Ka7 {[%clk
0:00:18]} 55. Qh7+ {[%clk 0:00:12.1]} 55... Kb8 {[%clk 0:00:18.3]} 56. Qeg6
{[%clk 0:00:13]} 56... Kc8 {[%clk 0:00:18.6]} 57. Qgg8# {[%clk 0:00:13.9]} 1-0

[Event "Late-Titled-Tuesday-Blitz-October-10-2023"]
[Site "Chess.com"]
[Date "2023.10.10"]
[Round "11"]
[White "Zampronha1971"]
[Black "arminmusovic"]
[Result "1-0"]
[WhiteElo "2338"]
[BlackElo "2485"]
[TimeControl "180+1"]
[EndTime "16:01:07 PDT"]
[Termination "Zampronha1971 won by checkmate"]

1. e4 {[%clk 0:03:00.9]} 1... c6 {[%clk 0:03:00.1]} 2. d4 {[%clk 0:03:00.4]}
2... d5 {[%clk 0:03:01]} 3. e5 {[%clk 0:03:01]} 3... c5 {[%clk 0:02:58.6]} 4.
Nf3 {[%clk 0:02:56.8]} 4... Nc6 {[%clk 0:02:58.5]} 5. c4 {[%clk 0:02:56.6]} 5...
cxd4 {[%clk 0:02:57.6]} 6. Nxd4 {[%clk 0:02:49.6]} 6... e6 {[%clk 0:02:55.7]} 7.
Nxc6 {[%clk 0:02:44.5]} 7... bxc6 {[%clk 0:02:55.5]} 8. Nc3 {[%clk 0:02:43.3]}
8... Bb4 {[%clk 0:02:52.4]} 9. Qa4 {[%clk 0:02:40.7]} 9... Qb6 {[%clk
0:02:48.8]} 10. Be3 {[%clk 0:01:54.3]} 10... Bc5 {[%clk 0:02:13.1]} 11. Bxc5
{[%clk 0:01:48.9]} 11... Qxc5 {[%clk 0:02:14]} 12. Be2 {[%clk 0:01:30.3]} 12...
Bd7 {[%clk 0:02:09.7]} 13. O-O {[%clk 0:01:23]} 13... d4 {[%clk 0:02:04.3]} 14.
Ne4 {[%clk 0:01:20.4]} 14... Qxe5 {[%clk 0:02:03.8]} 15. Bf3 {[%clk 0:01:08.8]}
15... Nf6 {[%clk 0:02:02.6]} 16. Nxf6+ {[%clk 0:01:06.3]} 16... Qxf6 {[%clk
0:01:50.3]} 17. Bxc6 {[%clk 0:01:07.2]} 17... Rd8 {[%clk 0:01:50.8]} 18. Rad1
{[%clk 0:00:58.7]} 18... Bxc6 {[%clk 0:01:50.6]} 19. Qxc6+ {[%clk 0:00:57.6]}
19... Kf8 {[%clk 0:01:50.3]} 20. Rfe1 {[%clk 0:00:47.9]} 20... Qe7 {[%clk
0:01:48.6]} 21. Re4 {[%clk 0:00:41.9]} 21... d3 {[%clk 0:01:38.1]} 22. Re3
{[%clk 0:00:38.4]} 22... d2 {[%clk 0:01:36.8]} 23. Re2 {[%clk 0:00:32.6]} 23...
Qg5 {[%clk 0:01:03.6]} 24. Qc7 {[%clk 0:00:23.6]} 24... g6 {[%clk 0:00:57.3]}
25. f4 {[%clk 0:00:20.6]} 25... Qf6 {[%clk 0:00:57.1]} 26. Rexd2 {[%clk
0:00:18.4]} 26... Rxd2 {[%clk 0:00:56.9]} 27. Rxd2 {[%clk 0:00:19.3]} 27... Kg7
{[%clk 0:00:50.3]} 28. Qe5 {[%clk 0:00:19.6]} 28... h5 {[%clk 0:00:45.6]} 29. b3
{[%clk 0:00:18.9]} 29... h4 {[%clk 0:00:43.1]} 30. Rd7 {[%clk 0:00:18.3]} 30...
Qxe5 {[%clk 0:00:42.1]} 31. fxe5 {[%clk 0:00:17.8]} 31... Rh5 {[%clk 0:00:43]}
32. Rxa7 {[%clk 0:00:17.8]} 32... Rxe5 {[%clk 0:00:43.7]} 33. Rb7 {[%clk
0:00:11.1]} 33... Re2 {[%clk 0:00:42.2]} 34. c5 {[%clk 0:00:10]} 34... Rc2
{[%clk 0:00:42.7]} 35. b4 {[%clk 0:00:09.5]} 35... e5 {[%clk 0:00:43.4]} 36. Kf1
{[%clk 0:00:06.8]} 36... g5 {[%clk 0:00:42.7]} 37. a4 {[%clk 0:00:07]} 37... Kg6
{[%clk 0:00:41.6]} 38. a5 {[%clk 0:00:07.3]} 38... e4 {[%clk 0:00:41.5]} 39. a6
{[%clk 0:00:07.8]} 39... Ra2 {[%clk 0:00:39.1]} 40. a7 {[%clk 0:00:08]} 40... f5
{[%clk 0:00:38.7]} 41. b5 {[%clk 0:00:08.3]} 41... Kh5 {[%clk 0:00:38.7]} 42. b6
{[%clk 0:00:08.9]} 42... e3 {[%clk 0:00:37.7]} 43. Rb8 {[%clk 0:00:09.1]} 43...
Rf2+ {[%clk 0:00:36.1]} 44. Ke1 {[%clk 0:00:08.5]} 44... Rxg2 {[%clk 0:00:31.2]}
45. a8=Q {[%clk 0:00:09.1]} 45... Rxh2 {[%clk 0:00:31.7]} 46. Qf3+ {[%clk
0:00:07.6]} 46... g4 {[%clk 0:00:31.2]} 47. Qxe3 {[%clk 0:00:07.9]} 47... Rh1+
{[%clk 0:00:30.9]} 48. Kd2 {[%clk 0:00:07.3]} 48... Rh2+ {[%clk 0:00:31.5]} 49.
Qe2 {[%clk 0:00:07.4]} 49... Rxe2+ {[%clk 0:00:31.5]} 50. Kxe2 {[%clk
0:00:08.3]} 50... g3 {[%clk 0:00:32.3]} 51. Rg8 {[%clk 0:00:07.7]} 51... f4
{[%clk 0:00:31.6]} 52. b7 {[%clk 0:00:07.9]} 52... h3 {[%clk 0:00:30]} 53. b8=Q
{[%clk 0:00:08.3]} 53... f3+ {[%clk 0:00:30.3]} 54. Kxf3 {[%clk 0:00:07.2]}
54... g2 {[%clk 0:00:28.8]} 55. Qe8+ {[%clk 0:00:07.8]} 55... Kh4 {[%clk
0:00:28.7]} 56. Qe4+ {[%clk 0:00:07.8]} 56... Kh5 {[%clk 0:00:29.1]} 57. Qf5+
{[%clk 0:00:08.3]} 57... Kh6 {[%clk 0:00:29.4]} 58. Qg6# {[%clk 0:00:08.7]} 1-0

[Event "Late-Titled-Tuesday-Blitz-October-10-2023"]
[Site "Chess.com"]
[Date "2023.10.10"]
[Round "11"]
[White "PawnEatingZombie"]
[Black "protectiago"]
[Result "0-1"]
[WhiteElo "2184"]
[BlackElo "2081"]
[TimeControl "180+1"]
[EndTime "16:01:08 PDT"]
[Termination "protectiago won on time"]

1. e4 {[%clk 0:02:55]} 1... e5 {[%clk 0:02:59.5]} 2. Nf3 {[%clk 0:02:54.3]} 2...
Nc6 {[%clk 0:02:59.2]} 3. Bb5 {[%clk 0:02:54.8]} 3... a6 {[%clk 0:02:58.9]} 4.
Ba4 {[%clk 0:02:55.4]} 4... Nf6 {[%clk 0:02:59]} 5. d3 {[%clk 0:02:56]} 5... b5
{[%clk 0:02:57.4]} 6. Bb3 {[%clk 0:02:55.6]} 6... Be7 {[%clk 0:02:57.7]} 7. O-O
{[%clk 0:02:52.5]} 7... O-O {[%clk 0:02:54.8]} 8. a4 {[%clk 0:02:53]} 8... Rb8
{[%clk 0:02:53.6]} 9. axb5 {[%clk 0:02:52]} 9... axb5 {[%clk 0:02:53.8]} 10. c3
{[%clk 0:02:51]} 10... Bb7 {[%clk 0:02:47.9]} 11. Nbd2 {[%clk 0:02:48.8]} 11...
d5 {[%clk 0:02:45.5]} 12. exd5 {[%clk 0:02:47.6]} 12... Nxd5 {[%clk 0:02:45.5]}
13. Ne4 {[%clk 0:02:40.7]} 13... b4 {[%clk 0:02:32.7]} 14. Be3 {[%clk
0:02:22.1]} 14... bxc3 {[%clk 0:02:15.1]} 15. bxc3 {[%clk 0:02:21]} 15... Nxe3
{[%clk 0:01:58.8]} 16. fxe3 {[%clk 0:02:20.6]} 16... Kh8 {[%clk 0:01:53.1]} 17.
g4 {[%clk 0:01:56.4]} 17... Bc8 {[%clk 0:01:50.9]} 18. h3 {[%clk 0:01:41.2]}
18... Rxb3 {[%clk 0:01:46.4]} 19. Qxb3 {[%clk 0:01:39.7]} 19... Qxd3 {[%clk
0:01:46.5]} 20. Ng3 {[%clk 0:00:57]} 20... Qxe3+ {[%clk 0:01:44]} 21. Kg2 {[%clk
0:00:57.2]} 21... e4 {[%clk 0:01:29.9]} 22. Ng1 {[%clk 0:00:42.3]} 22... Bd6
{[%clk 0:01:14.7]} 23. Nh1 {[%clk 0:00:41]} 23... Be6 {[%clk 0:00:38.5]} 24. Qc2
{[%clk 0:00:40.8]} 24... Ne5 {[%clk 0:00:20.1]} 25. Rae1 {[%clk 0:00:38.8]}
25... Qd3 {[%clk 0:00:18.9]} 26. Qxd3 {[%clk 0:00:33.2]} 26... exd3 {[%clk
0:00:19.2]} 27. Ng3 {[%clk 0:00:11.5]} 27... h6 {[%clk 0:00:19.1]} 28. Ne4
{[%clk 0:00:10.9]} 28... Rb8 {[%clk 0:00:17.5]} 29. Nxd6 {[%clk 0:00:10.3]}
29... cxd6 {[%clk 0:00:17.7]} 30. Rd1 {[%clk 0:00:06.4]} 30... Rb3 {[%clk
0:00:17.4]} 31. Kg3 {[%clk 0:00:05.8]} 31... Rxc3 {[%clk 0:00:17.6]} 32. Nf3
{[%clk 0:00:05.1]} 32... f6 {[%clk 0:00:10.1]} 33. Nxe5 {[%clk 0:00:04.9]} 33...
dxe5 {[%clk 0:00:08.3]} 34. Rf3 {[%clk 0:00:05.5]} 34... e4 {[%clk 0:00:08.1]}
35. Re3 {[%clk 0:00:06.1]} 35... Bd5 {[%clk 0:00:08.5]} 36. Kf4 {[%clk
0:00:06.6]} 36... Kh7 {[%clk 0:00:08.4]} 37. h4 {[%clk 0:00:07.1]} 37... g6
{[%clk 0:00:07.8]} 38. h5 {[%clk 0:00:07.4]} 38... Kg7 {[%clk 0:00:07.7]} 39.
hxg6 {[%clk 0:00:06.9]} 39... Kxg6 {[%clk 0:00:08]} 40. Rh3 {[%clk 0:00:06.4]}
40... Rc2 {[%clk 0:00:07.6]} 41. Re3 {[%clk 0:00:04.9]} 41... Rf2+ {[%clk
0:00:07.5]} 42. Kg3 {[%clk 0:00:05.4]} 42... Rb2 {[%clk 0:00:05.7]} 43. Kf4
{[%clk 0:00:05.1]} 43... Bc6 {[%clk 0:00:05.4]} 44. Kg3 {[%clk 0:00:03.2]} 44...
Rc2 {[%clk 0:00:05.2]} 45. Kf4 {[%clk 0:00:03.2]} 45... Rb2 {[%clk 0:00:05.1]}
46. Kg3 {[%clk 0:00:03.1]} 46... Kg5 {[%clk 0:00:05.6]} 0-1

[Event "Late-Titled-Tuesday-Blitz-October-10-2023"]
[Site "Chess.com"]
[Date "2023.10.10"]
[Round "11"]
[White "NigelDwarf"]
[Black "JoakimVonAnd"]
[Result "1-0"]
[WhiteElo "2579"]
[BlackElo "2670"]
[TimeControl "180+1"]
[EndTime "16:01:09 PDT"]
[Termination "NigelDwarf won by resignation"]

1. Nf3 {[%clk 0:03:00.9]} 1... Nf6 {[%clk 0:02:58.2]} 2. c4 {[%clk 0:03:00.8]}
2... e6 {[%clk 0:02:56.5]} 3. Nc3 {[%clk 0:03:00.6]} 3... d5 {[%clk 0:02:55.3]}
4. e3 {[%clk 0:02:53.7]} 4... a6 {[%clk 0:02:53.9]} 5. b3 {[%clk 0:02:52.2]}
5... b6 {[%clk 0:02:51.6]} 6. cxd5 {[%clk 0:02:51.9]} 6... exd5 {[%clk
0:02:51.2]} 7. Bb2 {[%clk 0:02:49.1]} 7... Bd6 {[%clk 0:02:51.2]} 8. d4 {[%clk
0:02:47.2]} 8... O-O {[%clk 0:02:51]} 9. Bd3 {[%clk 0:02:47.8]} 9... Bb7 {[%clk
0:02:48.5]} 10. O-O {[%clk 0:02:47.8]} 10... Nbd7 {[%clk 0:02:48.6]} 11. Qc2
{[%clk 0:02:47.2]} 11... Re8 {[%clk 0:02:47.9]} 12. a3 {[%clk 0:02:33.6]} 12...
Rc8 {[%clk 0:02:44.4]} 13. b4 {[%clk 0:02:32.8]} 13... Ne4 {[%clk 0:02:44.7]}
14. b5 {[%clk 0:02:26.3]} 14... a5 {[%clk 0:02:38.9]} 15. h3 {[%clk 0:02:07.5]}
15... Re6 {[%clk 0:02:15.2]} 16. Qb3 {[%clk 0:01:51.3]} 16... Nxc3 {[%clk
0:02:12.4]} 17. Bxc3 {[%clk 0:01:46.5]} 17... Qe7 {[%clk 0:02:04.4]} 18. Rfe1
{[%clk 0:01:45.1]} 18... Re8 {[%clk 0:02:03.8]} 19. Ra2 {[%clk 0:01:26.8]} 19...
h5 {[%clk 0:01:59.5]} 20. Rae2 {[%clk 0:01:19]} 20... g5 {[%clk 0:01:59.7]} 21.
Bf5 {[%clk 0:01:11.3]} 21... Rf6 {[%clk 0:01:49.7]} 22. Bxd7 {[%clk 0:01:07.2]}
22... Qxd7 {[%clk 0:01:50.6]} 23. Nxg5 {[%clk 0:01:06.1]} 23... Rf5 {[%clk
0:01:42.6]} 24. h4 {[%clk 0:01:03.2]} 24... Rxg5 {[%clk 0:01:38.7]} 25. hxg5
{[%clk 0:01:01.7]} 25... h4 {[%clk 0:01:39.2]} 26. Qd1 {[%clk 0:00:29.8]} 26...
h3 {[%clk 0:01:37.3]} 27. Rc2 {[%clk 0:00:24.8]} 27... Re4 {[%clk 0:01:12.4]}
28. f4 {[%clk 0:00:19.3]} 28... Bc8 {[%clk 0:01:08.9]} 29. Kh2 {[%clk
0:00:14.4]} 29... Qf5 {[%clk 0:01:04.9]} 30. Qh5 {[%clk 0:00:13.5]} 30... Rxf4
{[%clk 0:00:24.9]} 31. exf4 {[%clk 0:00:11.8]} 31... Qxf4+ {[%clk 0:00:25.8]}
32. g3 {[%clk 0:00:08.9]} 32... Qxg3+ {[%clk 0:00:26]} 33. Kh1 {[%clk
0:00:08.5]} 33... Bg4 {[%clk 0:00:26.1]} 34. Re8+ {[%clk 0:00:07.1]} 34... Bf8
{[%clk 0:00:26.5]} 35. Rxf8+ {[%clk 0:00:04.5]} 35... Kxf8 {[%clk 0:00:27.4]}
36. Qh8+ {[%clk 0:00:04.4]} 36... Ke7 {[%clk 0:00:27.2]} 37. Qe5+ {[%clk
0:00:05]} 37... Qxe5 {[%clk 0:00:18.4]} 38. dxe5 {[%clk 0:00:05.9]} 38... Bf5
{[%clk 0:00:18.4]} 39. Rd2 {[%clk 0:00:05.8]} 39... Be4+ {[%clk 0:00:18.9]} 40.
Kh2 {[%clk 0:00:06.2]} 40... Ke6 {[%clk 0:00:19.8]} 41. Bd4 {[%clk 0:00:06.8]}
41... Bb1 {[%clk 0:00:17.7]} 42. Kxh3 {[%clk 0:00:06.8]} 42... a4 {[%clk
0:00:15.8]} 43. Rf2 {[%clk 0:00:06.3]} 43... Bd3 {[%clk 0:00:15.3]} 44. Rf6+
{[%clk 0:00:06]} 44... Ke7 {[%clk 0:00:15.8]} 45. Kh4 {[%clk 0:00:06.1]} 45...
Bxb5 {[%clk 0:00:16.4]} 46. g6 {[%clk 0:00:05.4]} 46... Be8 {[%clk 0:00:15.2]}
47. g7 {[%clk 0:00:05.2]} 1-0

[Event "Late-Titled-Tuesday-Blitz-October-10-2023"]
[Site "Chess.com"]
[Date "2023.10.10"]
[Round "11"]
[White "Langua_Chess"]
[Black "djano"]
[Result "0-1"]
[WhiteElo "2486"]
[BlackElo "2674"]
[TimeControl "180+1"]
[EndTime "16:01:09 PDT"]
[Termination "djano won on time"]

1. e4 {[%clk 0:03:00.9]} 1... c5 {[%clk 0:03:00.2]} 2. Nf3 {[%clk 0:03:01.3]}
2... Nc6 {[%clk 0:03:00.7]} 3. d4 {[%clk 0:03:02]} 3... cxd4 {[%clk 0:03:00.6]}
4. Nxd4 {[%clk 0:03:02.9]} 4... g6 {[%clk 0:03:01]} 5. c4 {[%clk 0:03:02.4]}
5... e5 {[%clk 0:03:00.9]} 6. Nb5 {[%clk 0:02:56.4]} 6... d6 {[%clk 0:03:01]} 7.
Be2 {[%clk 0:02:48.4]} 7... Nf6 {[%clk 0:02:59.2]} 8. Bg5 {[%clk 0:02:40.5]}
8... Be7 {[%clk 0:02:47.3]} 9. Bxf6 {[%clk 0:02:08.4]} 9... Bxf6 {[%clk
0:02:48.2]} 10. Qxd6 {[%clk 0:02:04.9]} 10... Qxd6 {[%clk 0:02:45.1]} 11. Nxd6+
{[%clk 0:02:05.3]} 11... Ke7 {[%clk 0:02:45.9]} 12. Nb5 {[%clk 0:01:54.2]} 12...
Be6 {[%clk 0:02:29.3]} 13. N1c3 {[%clk 0:01:41.3]} 13... Nd4 {[%clk 0:02:11.5]}
14. Nxd4 {[%clk 0:01:18.2]} 14... exd4 {[%clk 0:02:12.4]} 15. Nd5+ {[%clk
0:01:19]} 15... Bxd5 {[%clk 0:02:12.2]} 16. cxd5 {[%clk 0:01:19.8]} 16... Rac8
{[%clk 0:01:57]} 17. f4 {[%clk 0:00:52.8]} 17... Rc2 {[%clk 0:01:52.7]} 18. e5
{[%clk 0:00:53.3]} 18... Bg7 {[%clk 0:01:51.1]} 19. d6+ {[%clk 0:00:51.7]} 19...
Kd8 {[%clk 0:01:51.4]} 20. Bd3 {[%clk 0:00:45.6]} 20... Rxg2 {[%clk 0:01:45.7]}
21. O-O-O {[%clk 0:00:26.9]} 21... Bh6 {[%clk 0:01:45.4]} 22. Rdf1 {[%clk
0:00:16.3]} 22... Rg4 {[%clk 0:01:45]} 23. Kc2 {[%clk 0:00:09.6]} 23... Bxf4
{[%clk 0:01:41.7]} 24. h3 {[%clk 0:00:04.6]} 24... Rh4 {[%clk 0:01:41]} 25. Re1
{[%clk 0:00:05.3]} 25... Rh5 {[%clk 0:01:41.1]} 26. Rhf1 {[%clk 0:00:03.4]}
26... Rxe5 {[%clk 0:01:34.9]} 27. Rxe5 {[%clk 0:00:02.3]} 27... Bxe5 {[%clk
0:01:35.8]} 28. Rxf7 {[%clk 0:00:02.8]} 28... Bxd6 {[%clk 0:01:36.5]} 29. Rxb7
{[%clk 0:00:03.4]} 29... Rf8 {[%clk 0:01:33.5]} 30. Rxa7 {[%clk 0:00:03.5]}
30... Rf2+ {[%clk 0:01:34.2]} 31. Kb3 {[%clk 0:00:03.9]} 31... Rf3 {[%clk
0:01:33.7]} 32. Kc4 {[%clk 0:00:03.4]} 32... Rxh3 {[%clk 0:01:34.3]} 33. Ra8+
{[%clk 0:00:02.6]} 33... Ke7 {[%clk 0:01:33.9]} 34. Kxd4 {[%clk 0:00:03.3]}
34... g5 {[%clk 0:01:28.2]} 35. a4 {[%clk 0:00:03.8]} 35... Rh4+ {[%clk
0:01:27.7]} 36. Kd5 {[%clk 0:00:03.7]} 36... Bb4 {[%clk 0:01:21]} 37. a5 {[%clk
0:00:03.4]} 37... Rh3 {[%clk 0:01:20.1]} 38. Be4 {[%clk 0:00:03.2]} 38... Rh2
{[%clk 0:01:19.4]} 39. a6 {[%clk 0:00:01.6]} 39... Rxb2 {[%clk 0:01:19.6]} 40.
a7 {[%clk 0:00:02.2]} 40... Ra2 {[%clk 0:01:15.9]} 41. Ke5 {[%clk 0:00:02]}
41... Ra5+ {[%clk 0:01:00.6]} 42. Kd4 {[%clk 0:00:01.7]} 42... Bc5+ {[%clk
0:01:00.7]} 43. Kc4 {[%clk 0:00:02.2]} 43... Bxa7 {[%clk 0:01:01.6]} 44. Rh8
{[%clk 0:00:02.1]} 44... Ra4+ {[%clk 0:00:59.3]} 45. Kd5 {[%clk 0:00:02.2]}
45... Kf6 {[%clk 0:00:56.5]} 46. Rxh7 {[%clk 0:00:02.2]} 46... Rd4+ {[%clk
0:00:56.9]} 47. Kc6 {[%clk 0:00:01.6]} 47... Rxe4 {[%clk 0:00:57.5]} 48. Rxa7
{[%clk 0:00:01.7]} 48... g4 {[%clk 0:00:57.7]} 49. Kd5 {[%clk 0:00:01.8]} 49...
Re1 {[%clk 0:00:56.5]} 50. Ra8 {[%clk 0:00:02]} 50... Kg5 {[%clk 0:00:55.6]} 51.
Rf8 {[%clk 0:00:01.2]} 51... g3 {[%clk 0:00:54]} 52. Rg8+ {[%clk 0:00:01.8]}
52... Kf4 {[%clk 0:00:53]} 53. Rf8+ {[%clk 0:00:02.5]} 53... Kg4 {[%clk
0:00:53.5]} 54. Rg8+ {[%clk 0:00:03.1]} 54... Kh3 {[%clk 0:00:53.8]} 55. Rh8+
{[%clk 0:00:03.4]} 55... Kg2 {[%clk 0:00:54.3]} 56. Kd4 {[%clk 0:00:04]} 56...
Kf2 {[%clk 0:00:53.8]} 57. Rf8+ {[%clk 0:00:03.6]} 57... Kg1 {[%clk 0:00:54.3]}
58. Kd3 {[%clk 0:00:04.1]} 58... g2 {[%clk 0:00:54.5]} 59. Kd2 {[%clk
0:00:04.8]} 59... Rf1 {[%clk 0:00:54.8]} 60. Rg8 {[%clk 0:00:05]} 60... Rf6
{[%clk 0:00:46.8]} 61. Ke1 {[%clk 0:00:05.3]} 61... Re6+ {[%clk 0:00:46.1]} 62.
Kd1 {[%clk 0:00:03.6]} 62... Re4 {[%clk 0:00:46.8]} 63. Kd2 {[%clk 0:00:03.6]}
63... Kf2 {[%clk 0:00:47.3]} 64. Rf8+ {[%clk 0:00:02.7]} 64... Kg3 {[%clk
0:00:47.5]} 65. Rg8+ {[%clk 0:00:03.4]} 65... Rg4 {[%clk 0:00:47.9]} 0-1